bitfinex-derivatives/quotes_BTCF0:USTF0_20210703
["timestamp","ask_amount","ask_price","bid_price","bid_amount"]
[1625353159248,2.32629233,34548.0,34547.0,0.72995713]
[1625353159597,2.83882122,34548.0,34547.0,0.56703866]
[1625353159799,2.83882122,34548.0,34545.0,0.48918191]
[1625353159898,2.83882122,34548.0,34543.0,0.97836382]
[1625353160048,2.83882122,34548.0,34542.0,0.11789311]
[1625353160150,0.0144909,34547.0,34544.0,0.00442696]
[1625353160351,0.1324909,34547.0,34544.0,0.00442696]
[1625353160450,0.1324909,34547.0,34543.0,0.00442725]
[1625353160651,0.48115088,34544.0,34543.0,0.00442725]
[1625353160802,0.59915088,34544.0,34540.0,0.25356812]
[1625353161005,0.61364261,34544.0,34531.0,1.46925845]
[1625353161201,0.01450679,34543.0,34531.0,1.46925845]
[1625353161302,0.01450679,34543.0,34541.0,0.00442189]
[1625353161406,0.13250679,34543.0,34541.0,0.00442189]
[1625353161505,0.13250679,34543.0,34534.0,0.00442807]
[1625353161756,0.01449107,34542.0,34534.0,0.00442807]
[1625353161853,0.13249107,34542.0,34534.0,0.00442807]
[1625353162306,0.01449112,34541.0,34534.0,0.00442807]
[1625353162455,0.44605112,34541.0,34534.0,0.00442807]
[1625353162758,0.83972632,34535.0,34534.0,0.00442807]
[1625353162856,0.83972632,34535.0,34525.0,1.71315504]
[1625353165609,0.83972632,34535.0,34526.0,1.4698269]
[1625353166561,0.83972632,34535.0,34534.0,0.0859]
[1625353166661,0.83972632,34535.0,34526.0,1.4698269]
[1625353167466,0.48115088,34535.0,34534.0,0.5]
[1625353167566,0.48115088,34535.0,34534.0,0.79289]
[1625353167665,0.47485088,34535.0,34534.0,0.85631747]
[1625353167765,0.15607544,34535.0,34534.0,0.85631747]
[1625353167866,0.15607544,34535.0,34534.0,0.91531747]
[1625353168116,0.15607544,34535.0,34534.0,2.37834399]
[1625353168215,0.13477544,34535.0,34534.0,2.37834399]
[1625353168364,0.13147544,34535.0,34534.0,2.37834399]
[1625353168716,0.13147544,34535.0,34534.0,2.85949487]
[1625353170078,0.13147544,34535.0,34534.0,4.48483105]
[1625353175980,0.13147544,34535.0,34534.0,5.78631934]
[1625353176180,0.13147544,34535.0,34534.0,5.87231934]
[1625353179593,0.13147544,34535.0,34534.0,5.78631934]
[1625353179792,0.13147544,34535.0,34534.0,5.72731934]
[1625353179892,0.13147544,34535.0,34534.0,5.78631934]
[1625353180946,0.13147544,34535.0,34534.0,4.16098316]
[1625353181397,0.13147544,34535.0,34534.0,6.94072223]
[1625353186007,0.24057544,34544.0,34534.0,6.94072223]
[1625353186159,0.29957544,34544.0,34534.0,6.94072223]
[1625353186260,0.29957544,34544.0,34534.0,5.3055816]
[1625353186509,0.29957544,34544.0,34536.0,0.5859]
[1625353186608,0.29957544,34544.0,34536.0,0.6449]
[1625353186708,0.29957544,34544.0,34543.0,2.44757775]
[1625353186858,0.29957544,34544.0,34543.0,2.68815319]
[1625353187108,0.29957544,34544.0,34543.0,1.38277839]
[1625353187207,0.29957544,34544.0,34543.0,1.38719503]
[1625353187759,0.29957544,34544.0,34543.0,1.38277839]
[1625353189465,0.35857544,34544.0,34543.0,1.38277839]
[1625353189716,0.29957544,34544.0,34543.0,1.38277839]
[1625353189816,0.35857544,34544.0,34543.0,1.38277839]
[1625353189916,0.29957544,34544.0,34543.0,1.38277839]
[1625353190016,0.35857544,34544.0,34543.0,2.36050206]
[1625353190116,0.29957544,34544.0,34543.0,2.36050206]
[1625353190567,0.35857544,34544.0,34543.0,2.36050206]
[1625353190665,0.29957544,34544.0,34543.0,2.36050206]
[1625353191921,0.29957544,34544.0,34543.0,2.36491895]
[1625353199089,0.24057544,34544.0,34543.0,2.61227895]
[1625353199441,0.24057544,34544.0,34543.0,3.9122173]
[1625353200846,0.24057544,34544.0,34543.0,5.373002]
[1625353201648,0.58514544,34544.0,34543.0,3.9122173]
[1625353201749,0.64414544,34544.0,34543.0,3.6648573]
[1625353201947,0.65865549,34544.0,34543.0,3.6648573]
[1625353202199,0.65865549,34544.0,34543.0,0.24499233]
[1625353202298,0.65865549,34544.0,34543.0,0.00441689]
[1625353202750,2.88084471,34544.0,34543.0,0.00441689]
[1625353203102,4.24823131,34544.0,34543.0,0.00441689]
[1625353203501,4.18923131,34544.0,34543.0,0.00441689]
[1625353203601,4.24823131,34544.0,34543.0,0.00441689]
[1625353203903,4.24823131,34544.0,34540.0,0.00441929]
[1625353204152,0.01451123,34543.0,34535.0,1.01281941]
[1625353204252,0.13251123,34543.0,34535.0,1.01281941]
[1625353204403,0.13251123,34543.0,34538.0,0.97862382]
[1625353204654,0.13251123,34543.0,34538.0,0.12882382]
[1625353204755,0.07352715,34542.0,34538.0,0.12882382]
[1625353204854,0.13252715,34542.0,34535.0,1.30483176]
[1625353204953,0.72172632,34536.0,34535.0,1.30483176]
[1625353205055,0.83972632,34536.0,34535.0,1.30483176]
[1625353205155,0.83972632,34536.0,34530.0,1.3060995]
[1625353205305,1.09974396,34536.0,34530.0,1.3060995]
[1625353205505,0.01452821,34535.0,34530.0,1.3060995]
[1625353205606,0.13252821,34535.0,34530.0,1.3060995]
[1625353205706,0.13252821,34535.0,34526.0,1.54766334]
[1625353205805,0.13252821,34535.0,34531.0,0.00440922]
[1625353206008,0.01454337,34534.0,34527.0,0.00440937]
[1625353206157,0.13254337,34534.0,34527.0,0.00440937]
[1625353206258,1.49999553,34534.0,34527.0,0.00440937]
[1625353206559,0.01454375,34533.0,34527.0,0.00440937]
[1625353206661,1.44093425,34533.0,34527.0,0.00440937]
[1625353206809,1.49993425,34533.0,34527.0,0.00440937]
[1625353207010,0.48115088,34528.0,34527.0,0.00440937]
[1625353207110,0.89002088,34528.0,34527.0,0.00440937]
[1625353207409,0.89002088,34528.0,34523.0,0.24557544]
[1625353207658,0.89002088,34528.0,34523.0,7.544e-05]
[1625353208059,0.89002088,34528.0,34518.0,1.54978587]
[1625353208561,1.39002088,34528.0,34518.0,1.54978587]
[1625353208711,0.89002088,34528.0,34518.0,1.30921043]
[1625353208924,2.25638739,34528.0,34516.0,1.31147166]
[1625353209060,0.42027842,34519.0,34516.0,1.31147166]
[1625353209210,0.84715842,34519.0,34516.0,1.31147166]
[1625353209564,0.84715842,34519.0,34513.0,1.47540562]
[1625353209565,0.84715842,34519.0,34513.0,1.31206597]
[1625353209861,0.84715842,34519.0,34511.0,1.31322858]
[1625353210312,0.84715842,34519.0,34508.0,1.31439612]
[1625353210963,0.48115088,34509.0,34508.0,1.31439612]
[1625353211061,0.79609088,34509.0,34508.0,1.31439612]
[1625353211415,0.79609088,34509.0,34506.0,1.31321916]
[1625353211614,0.85509088,34509.0,34506.0,1.31321916]
[1625353211815,0.79609088,34509.0,34506.0,1.31321916]
[1625353212619,0.85509088,34509.0,34506.0,1.31321916]
[1625353213419,0.85509088,34509.0,34504.0,1.3123113]
[1625353213920,0.85509088,34509.0,34503.0,0.24057544]
[1625353213921,0.85509088,34509.0,34503.0,1.5529072]
[1625353214321,0.85509088,34509.0,34503.0,0.24057544]
[1625353215022,0.24057544,34504.0,34502.0,1.31209179]
[1625353215123,0.29957544,34504.0,34502.0,1.31209179]
[1625353215873,0.29957544,34504.0,34501.0,1.30879763]
[1625353216022,0.29957544,34504.0,34501.0,1.36779763]
[1625353217025,0.24057544,34502.0,34501.0,1.36779763]
[1625353217175,0.44165544,34502.0,34501.0,1.36779763]
[1625353217425,0.50065544,34502.0,34501.0,1.30879763]
[1625353217775,0.50065544,34502.0,34500.0,0.24057544]
[1625353218327,0.55965544,34502.0,34500.0,0.24057544]
[1625353218626,0.55965544,34502.0,34497.0,1.30696949]
[1625353218727,0.55965544,34502.0,34495.0,1.30741178]
[1625353219080,0.48115088,34496.0,34494.0,1.30796116]
[1625353219229,0.54015088,34496.0,34494.0,1.30796116]
[1625353219530,0.54015088,34496.0,34493.0,1.54848166]
[1625353219880,0.54015088,34496.0,34493.0,1.30790622]
[1625353219980,0.54015088,34496.0,34495.0,0.65436366]
[1625353220632,0.59915088,34496.0,34495.0,0.65436366]
[1625353221084,0.83972632,34496.0,34495.0,0.65436366]
[1625353221587,0.83972632,34496.0,34494.0,0.65506869]
[1625353222238,0.83972632,34496.0,34493.0,0.65543297]
[1625353223139,0.83972632,34496.0,34492.0,0.6557219]
[1625353223792,0.83972632,34496.0,34493.0,0.65492668]
[1625353223941,0.78072632,34496.0,34493.0,0.65492668]
[1625353224446,0.78072632,34496.0,34492.0,0.65402897]
[1625353224942,0.78072632,34496.0,34494.0,0.6538034]
[1625353225391,0.72172632,34496.0,34494.0,0.6538034]
[1625353225492,0.72172632,34496.0,34495.0,0.65340757]
[1625353225593,0.72172632,34496.0,34495.0,0.90729757]
[1625353228043,0.72172632,34496.0,34495.0,0.96629757]
[1625353228544,0.72172632,34496.0,34495.0,0.31289]
[1625353229551,0.72172632,34496.0,34495.0,0.96315941]
[1625353229899,0.51904746,34496.0,34495.0,0.96315941]
[1625353230051,0.51904746,34496.0,34495.0,0.96757244]
[1625353232709,0.51904746,34496.0,34495.0,0.31730303]
[1625353232810,0.51904746,34496.0,34495.0,0.06341303]
[1625353236064,0.3163686,34496.0,34495.0,0.06341303]
[1625353236314,0.07579316,34496.0,34495.0,0.06341303]
[1625353237118,0.07579316,34496.0,34495.0,0.30398847]
[1625353237217,0.07579316,34496.0,34495.0,0.58273847]
[1625353237422,0.24057544,34502.0,34495.0,0.58273847]
[1625353237518,0.24057544,34506.0,34495.0,1.73373944]
[1625353237618,0.24057544,34506.0,34495.0,1.79273944]
[1625353237819,0.16957544,34506.0,34496.0,0.0044044]
[1625353237969,0.09757544,34506.0,34498.0,0.0864]
[1625353238171,0.09757544,34506.0,34501.0,0.64996383]
[1625353238272,0.09757544,34506.0,34501.0,0.76796383]
[1625353238620,0.09757544,34506.0,34502.0,0.00440448]
[1625353238721,0.09757544,34506.0,34502.0,0.77261241]
[1625353239071,0.09757544,34506.0,34503.0,0.00440454]
[1625353239172,0.24057544,34509.0,34505.0,0.48115088]
[1625353239674,0.24057544,34509.0,34506.0,0.0044045]
[1625353240225,0.24057544,34509.0,34506.0,0.0634045]
[1625353240524,0.24057544,34509.0,34507.0,0.00440429]
[1625353241075,0.24057544,34509.0,34506.0,0.00440448]
[1625353243282,0.27016762,34509.0,34506.0,0.00440448]
[1625353243382,0.32916762,34509.0,34506.0,0.00440448]
[1625353243733,0.27016762,34509.0,34506.0,0.00440448]
[1625353244234,0.32916762,34509.0,34506.0,0.00440448]
[1625353244335,0.03790762,34509.0,34506.0,0.00440448]
[1625353245137,0.03790762,34509.0,34508.0,0.24057544]
[1625353245737,0.03790762,34509.0,34508.0,0.24497986]
[1625353248040,0.03790762,34509.0,34508.0,0.30397986]
[1625353248340,0.24057544,34513.0,34508.0,0.30397986]
[1625353248641,0.24057544,34513.0,34509.0,0.00440403]
[1625353248742,0.24057544,34513.0,34509.0,0.21649403]
[1625353249148,0.24057544,34513.0,34512.0,0.48115088]
[1625353249451,0.24057544,34513.0,34512.0,0.48555491]
[1625353250755,0.24057544,34513.0,34512.0,0.48115088]
[1625353251309,0.24057544,34513.0,34512.0,0.48555482]
[1625353253612,0.24057544,34513.0,34512.0,0.54455482]
[1625353253962,0.24057544,34513.0,34512.0,1.0349069]
[1625353254311,0.24057544,34513.0,34512.0,1.68867946]
[1625353255014,0.24057544,34513.0,34512.0,1.62967946]
[1625353255213,0.24057544,34523.0,34512.0,1.62967946]
[1625353255317,0.35857544,34520.0,34512.0,1.62967946]
[1625353255413,0.35857544,34520.0,34512.0,2.61003249]
[1625353255614,0.35857544,34520.0,34513.0,0.00440337]
[1625353255865,0.29957544,34520.0,34514.0,1.14490334]
[1625353256066,0.29957544,34520.0,34514.0,1.20390334]
[1625353256415,0.29957544,34520.0,34515.0,0.49505766]
[1625353256565,0.29957544,34520.0,34515.0,0.55405766]
[1625353256866,0.29957544,34520.0,34516.0,0.00440781]
[1625353257216,0.29957544,34520.0,34519.0,0.48115088]
[1625353257317,0.35857544,34520.0,34519.0,0.48115088]
[1625353257769,0.29957544,34520.0,34519.0,0.48115088]
[1625353259822,0.29957544,34520.0,34519.0,0.97297619]
[1625353260172,0.29957544,34520.0,34519.0,1.62864696]
[1625353260524,0.29957544,34520.0,34519.0,0.97297619]
[1625353260922,0.29957544,34520.0,34519.0,1.62863271]
[1625353261373,0.29957544,34520.0,34519.0,1.90828271]
[1625353261824,0.29957544,34520.0,34519.0,1.91268844]
[1625353263031,0.57801544,34520.0,34519.0,1.63303844]
[1625353263129,0.57801544,34520.0,34519.0,1.62863271]
[1625353263326,0.57801544,34520.0,34519.0,0.48115088]
[1625353264131,1.77240249,34520.0,34519.0,0.48115088]
[1625353265079,2.79618753,34520.0,34519.0,0.48115088]
[1625353265928,2.81074815,34520.0,34519.0,0.48115088]
[1625353266229,4.00608451,34520.0,34519.0,0.48115088]
[1625353266878,4.00608451,34520.0,34519.0,0.24057544]
[1625353267229,5.37271444,34520.0,34519.0,0.24057544]
[1625353267629,4.00608451,34520.0,34519.0,0.24057544]
[1625353268231,5.37272209,34520.0,34519.0,0.24057544]
[1625353268730,5.37272209,34520.0,34513.0,0.49494355]
[1625353269081,0.51265176,34514.0,34513.0,0.49494355]
[1625353269283,0.8712272,34514.0,34513.0,0.49494355]
[1625353269383,0.8712272,34514.0,34513.0,0.49935072]
[1625353269683,0.88578922,34514.0,34513.0,0.49494355]
[1625353269833,0.88578922,34514.0,34513.0,0.04434355]
[1625353270034,3.79080668,34514.0,34512.0,0.24057544]
[1625353270135,3.79080668,34514.0,34508.0,0.49585696]
[1625353270434,1.96053405,34509.0,34506.0,0.24057544]
[1625353270583,2.01953405,34509.0,34506.0,0.24057544]
[1625353270683,0.01456402,34508.0,34507.0,0.00440862]
[1625353270786,1.03992859,34508.0,34507.0,0.00440862]
[1625353270883,1.15792859,34508.0,34507.0,0.00440862]
[1625353270984,1.14336457,34508.0,34506.0,0.24057544]
[1625353271286,0.24057544,34507.0,34506.0,0.24057544]
[1625353271385,0.35857544,34507.0,34506.0,0.24057544]
[1625353271834,2.06745416,34507.0,34506.0,0.24057544]
[1625353272188,1.0421611,34507.0,34506.0,0.24057544]
[1625353272537,2.06742885,34507.0,34506.0,0.24057544]
[1625353277247,2.06742885,34507.0,34502.0,0.66227115]
[1625353277348,0.48115088,34503.0,34502.0,0.66227115]
[1625353277447,0.54015088,34503.0,34501.0,0.66289708]
[1625353278453,0.59915088,34503.0,34501.0,0.66289708]
[1625353279052,0.59915088,34503.0,34500.0,0.66325742]
[1625353279402,1.28245343,34503.0,34499.0,0.66335188]
[1625353279754,1.28245343,34503.0,34500.0,0.66350564]
[1625353280760,0.59915088,34503.0,34499.0,0.66363407]
[1625353281764,1.28237188,34503.0,34499.0,0.66363407]
[1625353282061,1.28237188,34503.0,34500.0,0.66422576]
[1625353283164,0.59915088,34503.0,34500.0,0.66422576]
[1625353283365,0.24057544,34501.0,34500.0,0.66422576]
[1625353283465,0.49059544,34501.0,34500.0,0.66422576]
[1625353283566,0.54959544,34501.0,34500.0,0.66422576]
[1625353284067,0.54959544,34501.0,34498.0,0.66529586]
[1625353284468,0.54959544,34501.0,34498.0,0.16519586]
[1625353285018,1.02458406,34499.0,34493.0,0.99907016]
[1625353285119,1.14258406,34499.0,34493.0,0.99907016]
[1625353285369,0.72172632,34494.0,34493.0,0.99907016]
[1625353285470,1.03883632,34494.0,34493.0,0.99907016]
[1625353285571,1.09783632,34494.0,34492.0,0.005]
[1625353288376,1.09783632,34494.0,34487.0,0.99928952]
[1625353288977,1.09783632,34494.0,34486.0,0.99918777]
[1625353289377,0.72172632,34487.0,34486.0,0.99918777]
[1625353289477,0.99813632,34487.0,34486.0,0.99918777]
[1625353289577,1.05713632,34487.0,34486.0,0.99918777]
[1625353290029,1.05713632,34487.0,34484.0,1.00037246]
[1625353290579,1.05713632,34487.0,34483.0,1.00043285]
[1625353291282,1.05713632,34487.0,34482.0,1.00010497]
[1625353291381,0.24057544,34483.0,34482.0,1.00010497]
[1625353291481,0.29957544,34483.0,34482.0,1.00010497]
[1625353291581,0.35857544,34483.0,34482.0,1.00010497]
[1625353291832,0.35857544,34483.0,34480.0,1.00063181]
[1625353292487,0.35857544,34483.0,34477.0,1.24075608]
[1625353293434,0.24057544,34478.0,34477.0,1.24075608]
[1625353293539,0.64163544,34478.0,34477.0,1.24075608]
[1625353293737,0.64163544,34478.0,34477.0,1.00018064]
[1625353295141,0.64163544,34478.0,34475.0,0.9997385]
[1625353295391,0.24057544,34476.0,34475.0,0.9997385]
[1625353295494,0.29957544,34476.0,34475.0,0.9997385]
[1625353295593,0.35857544,34476.0,34474.0,1.16636159]
[1625353296048,0.35857544,34476.0,34475.0,1.00009788]
[1625353296647,0.35857544,34476.0,34474.0,0.99966436]
[1625353297097,0.35857544,34476.0,34473.0,1.24022176]
[1625353297499,0.35857544,34476.0,34474.0,0.99957249]
[1625353297697,0.29957544,34476.0,34474.0,0.99957249]
[1625353297798,0.24057544,34476.0,34474.0,0.99957249]
[1625353298058,0.24057544,34476.0,34475.0,0.9994391]
[1625353298499,0.29957544,34476.0,34475.0,0.9994391]
[1625353299000,0.24057544,34476.0,34475.0,0.9994391]
[1625353299202,0.29957544,34476.0,34475.0,0.9994391]
[1625353299302,0.24057544,34476.0,34475.0,0.9994391]
[1625353300605,0.29957544,34476.0,34475.0,0.9994391]
[1625353300755,0.24057544,34476.0,34475.0,0.9994391]
[1625353301056,0.29957544,34476.0,34475.0,0.9994391]
[1625353301407,0.29957544,34476.0,34474.0,0.99685799]
[1625353301910,0.03779076,34476.0,34474.0,0.99685799]
[1625353302061,0.09679076,34476.0,34474.0,0.99685799]
[1625353302209,0.03779076,34476.0,34474.0,0.99685799]
[1625353302609,0.03779076,34476.0,34475.0,0.99580118]
[1625353303461,0.03779076,34476.0,34475.0,1.23637662]
[1625353303965,0.09679076,34476.0,34475.0,1.23637662]
[1625353304066,0.09679076,34476.0,34475.0,0.24057544]
[1625353304165,0.03779076,34476.0,34475.0,0.24057544]
[1625353304516,0.09679076,34476.0,34475.0,0.24057544]
[1625353304716,0.03779076,34476.0,34475.0,0.24057544]
[1625353305316,0.09679076,34476.0,34475.0,0.24057544]
[1625353305520,0.03779076,34476.0,34475.0,0.24057544]
[1625353306223,0.09679076,34476.0,34475.0,0.24057544]
[1625353306472,0.03779076,34476.0,34475.0,0.24057544]
[1625353306571,0.09679076,34476.0,34475.0,0.24057544]
[1625353306721,0.03779076,34476.0,34475.0,0.24057544]
[1625353307522,0.24057544,34488.0,34475.0,0.57073544]
[1625353307633,0.24057544,34488.0,34475.0,1.62568239]
[1625353307772,0.29957544,34488.0,34475.0,1.62568239]
[1625353307881,0.24057544,34488.0,34476.0,0.00441078]
[1625353307973,0.24057544,34488.0,34476.0,0.12241078]
[1625353308075,0.24057544,34488.0,34480.0,0.99500334]
[1625353308173,0.29957544,34488.0,34480.0,1.11300334]
[1625353308273,0.29957544,34488.0,34480.0,0.99500334]
[1625353308526,0.29957544,34488.0,34479.0,0.99529333]
[1625353308776,0.35857544,34488.0,34479.0,0.99529333]
[1625353308878,0.67333544,34488.0,34479.0,0.99529333]
[1625353309080,0.67333544,34488.0,34477.0,0.99607943]
[1625353309228,0.67333544,34488.0,34477.0,1.05507943]
[1625353309428,0.67333544,34488.0,34487.0,0.24057544]
[1625353309529,0.71111923,34488.0,34487.0,0.24057544]
[1625353310031,0.71111923,34488.0,34483.0,0.24057544]
[1625353311033,0.0145777,34487.0,34483.0,0.24057544]
[1625353311233,0.1325777,34487.0,34483.0,0.24057544]
[1625353311483,0.24057544,34484.0,34475.0,0.24057544]
[1625353311632,0.35857544,34484.0,34475.0,0.24057544]
[1625353312936,0.35857544,34484.0,34476.0,0.00441183]
[1625353313536,0.35857544,34484.0,34480.0,0.24057544]
[1625353314836,0.35857544,34484.0,34481.0,0.0044117]
[1625353315537,0.24057544,34482.0,34481.0,0.0044117]
[1625353315640,0.35857544,34482.0,34481.0,0.0044117]
[1625353318845,0.37315248,34482.0,34481.0,0.0044117]
[1625353325359,0.35857544,34482.0,34481.0,0.0044117]
[1625353325560,0.35857544,34482.0,34481.0,0.24498714]
[1625353325813,0.35857544,34482.0,34481.0,0.41186691]
[1625353326210,0.35857544,34482.0,34481.0,0.74574629]
[1625353326613,0.29957544,34482.0,34481.0,0.74574629]
[1625353326714,0.29957544,34482.0,34481.0,0.24498714]
[1625353327163,0.29957544,34482.0,34481.0,0.57932312]
[1625353327969,0.29957544,34482.0,34481.0,0.86963312]
[1625353328067,0.24057544,34482.0,34481.0,0.86963312]
[1625353328169,0.24057544,34482.0,34481.0,1.53774145]
[1625353328316,0.03778379,34488.0,34481.0,1.53774145]
[1625353328465,0.03778379,34488.0,34481.0,1.59674145]
[1625353328567,0.09678379,34488.0,34481.0,1.59674145]
[1625353328716,0.09678379,34488.0,34485.0,0.50152853]
[1625353328815,0.01458824,34487.0,34485.0,0.50152853]
[1625353329064,0.07358824,34487.0,34486.0,0.0044057]
[1625353329315,0.059,34487.0,34486.0,0.0044057]
[1625353329668,0.059,34487.0,34486.0,0.24498114]
[1625353330066,0.059,34487.0,34486.0,1.24709074]
[1625353330915,0.059,34487.0,34486.0,2.416579]
[1625353331517,0.059,34487.0,34486.0,1.24709074]
[1625353331618,0.059,34487.0,34486.0,1.48766618]
[1625353332017,0.059,34487.0,34486.0,2.65722856]
[1625353334427,0.059,34487.0,34486.0,3.99445351]
[1625353334928,0.059,34487.0,34486.0,2.65722856]
[1625353335378,0.059,34487.0,34486.0,3.99474811]
[1625353336380,0.17096482,34492.0,34486.0,3.99474811]
[1625353336532,0.059,34492.0,34486.0,0.48555658]
[1625353336780,0.059,34492.0,34487.0,0.00440487]
[1625353336982,0.059,34492.0,34491.0,2.17373164]
[1625353337432,0.059,34492.0,34491.0,2.17813624]
[1625353337681,0.5129636,34495.0,34491.0,2.65928712]
[1625353337781,0.5719636,34495.0,34491.0,2.65928712]
[1625353338033,0.059,34495.0,34494.0,1.0017368]
[1625353338382,0.17101787,34496.0,34494.0,1.00614117]
[1625353338632,0.17101787,34496.0,34494.0,1.0017368]
[1625353339083,0.17101787,34496.0,34492.0,1.16869293]
[1625353339084,0.17101787,34496.0,34495.0,1.00168558]
[1625353339634,0.17101787,34496.0,34495.0,1.48283646]
[1625353339734,0.17101787,34496.0,34495.0,1.48724044]
[1625353339886,1.02525297,34499.0,34495.0,1.48724044]
[1625353339887,0.08562849,34498.0,34495.0,2.65503546]
[1625353339984,0.14462849,34498.0,34495.0,2.65503546]
[1625353340084,0.14462849,34498.0,34495.0,2.65063148]
[1625353340184,0.20362849,34498.0,34495.0,2.65063148]
[1625353340486,0.118,34498.0,34497.0,1.00067778]
[1625353341236,0.63117567,34498.0,34497.0,1.00067778]
[1625353341585,0.57217567,34498.0,34497.0,1.00067778]
[1625353341685,0.63117567,34498.0,34497.0,1.24125322]
[1625353341886,0.63117567,34498.0,34497.0,0.24057544]
[1625353342688,0.118,34498.0,34497.0,1.24300487]
[1625353344041,0.118,34498.0,34497.0,0.24057544]
[1625353344793,0.80212809,34498.0,34497.0,0.90913036]
[1625353345691,1.05455809,34498.0,34497.0,0.90913036]
[1625353346143,4.64573071,34498.0,34497.0,0.24057544]
[1625353346245,4.58673071,34498.0,34493.0,0.58558925]
[1625353346393,4.66031492,34498.0,34493.0,0.58558925]
[1625353346694,0.01458472,34497.0,34493.0,0.58558925]
[1625353346794,4.27547696,34494.0,34491.0,0.24057544]
[1625353346894,4.33447696,34494.0,34491.0,0.24057544]
[1625353346994,4.39347696,34494.0,34491.0,0.24057544]
[1625353347093,4.39347696,34494.0,34490.0,0.58518816]
[1625353347194,0.01458581,34493.0,34490.0,0.58518816]
[1625353347295,4.27570983,34492.0,34488.0,0.08366738]
[1625353347446,4.33470983,34492.0,34488.0,0.08366738]
[1625353347546,4.39370983,34492.0,34488.0,0.08366738]
[1625353347696,0.48115088,34489.0,34488.0,0.08366738]
[1625353347845,3.77402375,34489.0,34487.0,0.32415262]
[1625353348445,1.71060453,34488.0,34487.0,0.32415262]
[1625353348548,1.76960453,34488.0,34487.0,0.32415262]
[1625353348696,1.82860453,34488.0,34487.0,0.32415262]
[1625353348896,1.76960453,34488.0,34487.0,0.32415262]
[1625353349498,2.96690634,34488.0,34487.0,0.24057544]
[1625353350051,1.76960453,34488.0,34487.0,0.57476291]
[1625353350498,0.74327602,34488.0,34487.0,0.90857077]
[1625353350999,0.80227602,34488.0,34487.0,0.90857077]
[1625353351199,0.80227602,34488.0,34487.0,0.24057544]
[1625353351801,3.0258071,34488.0,34487.0,0.24057544]
[1625353352450,4.3942504,34488.0,34484.0,0.3242251]
[1625353352700,4.40883719,34488.0,34484.0,0.3242251]
[1625353352900,4.3942504,34488.0,34484.0,0.3242251]
[1625353353104,2.05280393,34485.0,34484.0,0.24057544]
[1625353353203,4.39464636,34485.0,34484.0,0.24057544]
[1625353353654,1.82872696,34485.0,34484.0,0.32423363]
[1625353353755,2.0693024,34485.0,34484.0,0.32423363]
[1625353353854,2.0103024,34485.0,34484.0,0.32423363]
[1625353354004,2.0103024,34485.0,34484.0,0.4915413]
[1625353354505,2.0103024,34485.0,34484.0,0.90947865]
[1625353354607,0.98390043,34485.0,34484.0,0.90947865]
[1625353355356,2.01018922,34485.0,34484.0,0.82622235]
[1625353356457,2.01018922,34485.0,34484.0,0.24057544]
[1625353356858,2.06918922,34485.0,34484.0,0.24057544]
[1625353357161,3.26654734,34485.0,34484.0,0.24057544]
[1625353358309,3.26654734,34485.0,34482.0,0.58674075]
[1625353358811,2.90798309,34483.0,34481.0,0.25194155]
[1625353358911,2.96698309,34483.0,34481.0,0.25194155]
[1625353359011,3.02598309,34483.0,34481.0,0.25194155]
[1625353359514,2.90806001,34482.0,34480.0,0.82861437]
[1625353359613,2.96706001,34482.0,34480.0,0.82861437]
[1625353359814,0.24057544,34481.0,34480.0,0.82861437]
[1625353359914,0.29957544,34481.0,34480.0,0.82861437]
[1625353360115,2.52350112,34481.0,34480.0,0.82861437]
[1625353361418,2.52350112,34481.0,34480.0,0.3246144]
[1625353362421,3.72069268,34481.0,34480.0,0.24057544]
[1625353362974,3.72069268,34481.0,34480.0,0.4926496]
[1625353362975,2.52350112,34481.0,34480.0,0.4926496]
[1625353363521,1.49713966,34481.0,34480.0,1.08039124]
[1625353364675,1.49713966,34481.0,34480.0,0.7443935]
[1625353364775,1.49713966,34481.0,34480.0,0.8033935]
[1625353365277,1.49713966,34481.0,34480.0,0.80313517]
[1625353366430,1.49713966,34481.0,34480.0,0.74413517]
[1625353367032,1.49713966,34481.0,34480.0,0.7442432]
[1625353367633,1.49713966,34481.0,34480.0,1.07993699]
[1625353368234,0.81284168,34481.0,34480.0,0.74415848]
[1625353368834,0.81284168,34481.0,34480.0,1.07992743]
[1625353369336,1.49671391,34481.0,34480.0,1.07992743]
[1625353369737,0.81284168,34481.0,34480.0,0.74415848]
[1625353369837,0.81284168,34481.0,34480.0,0.80315848]
[1625353370289,0.81284168,34481.0,34480.0,1.47454462]
[1625353370290,1.15485743,34481.0,34480.0,1.47454462]
[1625353370738,1.15485743,34481.0,34480.0,1.41554462]
[1625353370838,1.15485743,34481.0,34480.0,0.74415848]
[1625353371389,0.81284168,34481.0,34480.0,0.74415848]
[1625353372890,0.81284168,34481.0,34480.0,0.24057544]
[1625353372891,2.52249922,34481.0,34480.0,0.24057544]
[1625353375349,2.53708583,34481.0,34480.0,0.32892787]
[1625353375599,2.53708583,34481.0,34480.0,0.32451903]
[1625353375852,2.53708583,34481.0,34480.0,0.32892785]
[1625353376152,2.53708583,34481.0,34480.0,0.24498426]
[1625353376401,2.53708583,34481.0,34480.0,0.24057544]
[1625353379365,2.53708583,34481.0,34480.0,0.24498427]
[1625353380616,1.51132549,34481.0,34480.0,0.24498427]
[1625353381320,1.51132549,34481.0,34480.0,0.32893226]
[1625353382571,2.5365949,34481.0,34480.0,0.24498427]
[1625353382972,3.73268322,34481.0,34480.0,0.24498427]
[1625353386628,3.79168322,34481.0,34480.0,0.24498427]
[1625353386729,3.79168322,34481.0,34480.0,0.00440883]
[1625353386828,3.79168322,34481.0,34476.0,0.9387]
[1625353387080,0.01458732,34480.0,34477.0,0.00440969]
[1625353387179,0.07358732,34480.0,34477.0,0.00440969]
[1625353387332,0.07358732,34480.0,34476.0,0.9387]
[1625353387333,1.36647405,34479.0,34476.0,0.9387]
[1625353387429,1.48447405,34479.0,34476.0,0.9387]
[1625353387680,1.38110165,34478.0,34476.0,0.9387]
[1625353387828,1.49910165,34478.0,34476.0,0.9387]
[1625353387929,0.48115088,34477.0,34476.0,0.9387]
[1625353388136,0.81636902,34477.0,34476.0,0.9387]
[1625353388283,2.18280433,34477.0,34476.0,0.9387]
[1625353388736,3.72006239,34477.0,34476.0,0.9387]
[1625353389286,2.18280433,34477.0,34476.0,0.9387]
[1625353394093,0.81636902,34477.0,34476.0,0.9387]
[1625353394593,5.59349943,34477.0,34476.0,0.9387]
[1625353397948,4.22867814,34477.0,34476.0,0.9387]
[1625353398748,4.16967814,34477.0,34476.0,0.9387]
[1625353399052,3.71188456,34477.0,34476.0,1.12966]
[1625353399152,1.49398598,34477.0,34476.0,1.12966]
[1625353399802,0.29957544,34477.0,34476.0,1.12966]
[1625353400003,0.29957544,34477.0,34476.0,1.61081088]
[1625353400354,0.24057544,34477.0,34476.0,1.86185883]
[1625353400855,0.24057544,34477.0,34476.0,2.19658306]
[1625353401407,0.24057544,34477.0,34476.0,2.11290041]
[1625353402008,0.24057544,34477.0,34476.0,2.11731044]
[1625353402560,0.29957544,34477.0,34476.0,2.11290041]
[1625353402663,0.24057544,34477.0,34476.0,2.11268794]